Department Family,Entity,Date,Expense Type,Expense Area,Supplier,Transaction Number,Amount,Vat Registration Number
Department of Health,BRIDGEWATER COMMUNITY HEALTHCARE,01/11/2013,Bldg/Eng Equip Maint/Rep,Estates Service SLA - ALW,ERIC WRIGHT FACILITIES MANAGEMENT LTD,17002911,"43,668.60",349860318
Department of Health,BRIDGEWATER COMMUNITY HEALTHCARE,01/11/2013,Bldg/Eng Equip Maint/Rep,Estates Service SLA - ALW,ERIC WRIGHT FACILITIES MANAGEMENT LTD,17002912,"43,668.60",349860318
Department of Health,BRIDGEWATER COMMUNITY HEALTHCARE,01/11/2013,Bldg/Eng Equip Maint/Rep,Estates Service SLA - ALW,ERIC WRIGHT FACILITIES MANAGEMENT LTD,17002913,"43,668.60",349860318
Department of Health,BRIDGEWATER COMMUNITY HEALTHCARE,01/11/2013,Bldg/Eng Equip Maint/Rep,Estates Service SLA - ALW,ERIC WRIGHT FACILITIES MANAGEMENT LTD,17002914,"43,668.60",349860318
Department of Health,BRIDGEWATER COMMUNITY HEALTHCARE,19/11/2013,Bldg/Eng Equip Maint/Rep,Estates Service SLA - ALW,ERIC WRIGHT FACILITIES MANAGEMENT LTD,17039679,"43,668.60",349860318
Department of Health,BRIDGEWATER COMMUNITY HEALTHCARE,19/11/2013,Bldg/Eng Equip Maint/Rep,Estates Service SLA - ALW,ERIC WRIGHT FACILITIES MANAGEMENT LTD,17039680,"43,668.60",349860318
Department of Health,BRIDGEWATER COMMUNITY HEALTHCARE,19/11/2013,Bldg/Eng Equip Maint/Rep,Estates Service SLA - ALW,ERIC WRIGHT FACILITIES MANAGEMENT LTD,17039681,"43,668.60",349860318
Department of Health,BRIDGEWATER COMMUNITY HEALTHCARE,01/11/2013,CCG Income,Contractual Income,NHS ST HELENS CCG,16975458,"107,845.00",NULL
Department of Health,BRIDGEWATER COMMUNITY HEALTHCARE,01/11/2013,Grants,Healthcare Libraries Unit - ALW,NHS CHESHIRE AND MERSEYSIDE CSU,16984290,"33,250.00",NULL
Department of Health,BRIDGEWATER COMMUNITY HEALTHCARE,01/11/2013,Grants,Healthcare Libraries Unit - ALW,NHS CHESHIRE AND MERSEYSIDE CSU,16988032,"68,672.00",NULL
Department of Health,BRIDGEWATER COMMUNITY HEALTHCARE,01/11/2013,Hcare Srv Rec NHS Trust,Minor Injury Unit StH,ST HELENS AND KNOWSLEY HOSPITALS NHS TRUST,16969639,"26,414.25",654943996
Department of Health,BRIDGEWATER COMMUNITY HEALTHCARE,01/11/2013,Hlthcre-Foundation Trsts,Sexual Health,WARRINGTON & HALTON HOSPITALS NHS FOUNDATION TRUST,16988017,"63,341.00",NULL
Department of Health,BRIDGEWATER COMMUNITY HEALTHCARE,15/11/2013,Hlthcre-Foundation Trsts,Sexual Health,WARRINGTON & HALTON HOSPITALS NHS FOUNDATION TRUST,17037340,"63,341.00",NULL
Department of Health,BRIDGEWATER COMMUNITY HEALTHCARE,19/11/2013,Independent Sector,Offender Health - Risley,DR MW HUSSAIN,17041903,"43,750.00",NULL
Department of Health,BRIDGEWATER COMMUNITY HEALTHCARE,28/11/2013,Lease Rents,Estate Services and Domestics (PCT recharge/LIFT) - HSH,COMMUNITY HEALTH PARTNERSHIPS,17069326,"90,978.34",782562113
Department of Health,BRIDGEWATER COMMUNITY HEALTHCARE,28/11/2013,Lease Rents,Estate Services and Domestics (PCT recharge/LIFT) - HSH,COMMUNITY HEALTH PARTNERSHIPS,17069327,"137,959.92",782562113
Department of Health,BRIDGEWATER COMMUNITY HEALTHCARE,28/11/2013,Lease Rents,Estate Services and Domestics (PCT recharge/LIFT) - HSH,COMMUNITY HEALTH PARTNERSHIPS,17069328,"67,147.82",782562113
Department of Health,BRIDGEWATER COMMUNITY HEALTHCARE,28/11/2013,Lease Rents,Estate Services and Domestics (PCT recharge/LIFT) - HSH,COMMUNITY HEALTH PARTNERSHIPS,17069332,"90,978.34",782562113
Department of Health,BRIDGEWATER COMMUNITY HEALTHCARE,28/11/2013,Lease Rents,Estate Services and Domestics (PCT recharge/LIFT) - HSH,COMMUNITY HEALTH PARTNERSHIPS,17069333,"137,959.92",782562113
Department of Health,BRIDGEWATER COMMUNITY HEALTHCARE,28/11/2013,Lease Rents,Estate Services and Domestics (PCT recharge/LIFT) - HSH,COMMUNITY HEALTH PARTNERSHIPS,17069334,"67,147.82",782562113
Department of Health,BRIDGEWATER COMMUNITY HEALTHCARE,28/11/2013,Lease Rents,Estate Services and Domestics (PCT recharge/LIFT) - HSH,COMMUNITY HEALTH PARTNERSHIPS,17069336,"32,803.67",782562113
Department of Health,BRIDGEWATER COMMUNITY HEALTHCARE,28/11/2013,Lease Rents,Estate Services and Domestics (PCT recharge/LIFT) - HSH,COMMUNITY HEALTH PARTNERSHIPS,17069337,"41,664.54",782562113
Department of Health,BRIDGEWATER COMMUNITY HEALTHCARE,28/11/2013,Lease Rents,Estate Services and Domestics (PCT recharge/LIFT) - HSH,COMMUNITY HEALTH PARTNERSHIPS,17069338,"272,935.01",782562113
Department of Health,BRIDGEWATER COMMUNITY HEALTHCARE,28/11/2013,Lease Rents,Estate Services and Domestics (PCT recharge/LIFT) - HSH,COMMUNITY HEALTH PARTNERSHIPS,17069339,"413,879.75",782562113
Department of Health,BRIDGEWATER COMMUNITY HEALTHCARE,28/11/2013,Lease Rents,Estate Services and Domestics (PCT recharge/LIFT) - HSH,COMMUNITY HEALTH PARTNERSHIPS,17069340,"201,443.47",782562113
Department of Health,BRIDGEWATER COMMUNITY HEALTHCARE,01/11/2013,Lease Rents,Estate Services and Domestics (PCT recharge/LIFT) - HSH,NHS PROPERTY SERVICES LTD,16996436,"52,126.48",NULL
Department of Health,BRIDGEWATER COMMUNITY HEALTHCARE,01/11/2013,Minor Works,Grasmere Street HC - ALW,ERIC WRIGHT FACILITIES MANAGEMENT LTD,16969745,"28,309.00",349860318
Department of Health,BRIDGEWATER COMMUNITY HEALTHCARE,01/11/2013,NonNHS Trade Pybls Curr,Balance Sheet,NHS SUPPLY CHAIN,16942959,"30,819.73",654434729
Department of Health,BRIDGEWATER COMMUNITY HEALTHCARE,01/11/2013,NonNHS Trade Pybls Curr,Balance Sheet,NHS SUPPLY CHAIN,16984289,"40,890.88",654434729
Department of Health,BRIDGEWATER COMMUNITY HEALTHCARE,01/11/2013,NonNHS Trade Pybls Curr,Balance Sheet,NHS SUPPLY CHAIN,16984291,"27,602.53",654434729
Department of Health,BRIDGEWATER COMMUNITY HEALTHCARE,01/11/2013,NonNHS Trade Pybls Curr,Balance Sheet,NHS SUPPLY CHAIN,16993990,"26,360.15",654434729
Department of Health,BRIDGEWATER COMMUNITY HEALTHCARE,01/11/2013,NonNHS Trade Pybls Curr,Balance Sheet,NHS SUPPLY CHAIN,16994001,"26,993.62",654434729
Department of Health,BRIDGEWATER COMMUNITY HEALTHCARE,15/11/2013,NonNHS Trade Pybls Curr,Balance Sheet,NHS SUPPLY CHAIN,17026150,"25,162.59",654434729
Department of Health,BRIDGEWATER COMMUNITY HEALTHCARE,14/11/2013,NonRes Bldg Additions,Balance Sheet,INGHAM & GARNER LTD,17034129,"80,732.93",166021489
Department of Health,BRIDGEWATER COMMUNITY HEALTHCARE,01/11/2013,Other Public Sector,StH - Health and Wellbeing,ST HELENS COUNCIL,16996434,"106,288.34",152815374
Department of Health,BRIDGEWATER COMMUNITY HEALTHCARE,28/11/2013,Rent,CDC Sandy Lane LIFT - WARR,COMMUNITY HEALTH PARTNERSHIPS,17069314,"120,714.00",782562113
Department of Health,BRIDGEWATER COMMUNITY HEALTHCARE,28/11/2013,Rent,CDC Sandy Lane LIFT - WARR,COMMUNITY HEALTH PARTNERSHIPS,17069317,"40,237.20",782562113
Department of Health,BRIDGEWATER COMMUNITY HEALTHCARE,28/11/2013,Rent,CDC Sandy Lane LIFT - WARR,COMMUNITY HEALTH PARTNERSHIPS,17069320,"40,237.20",782562113
Department of Health,BRIDGEWATER COMMUNITY HEALTHCARE,28/11/2013,Rent,Orford Park LIFT - WARR,COMMUNITY HEALTH PARTNERSHIPS,17069315,"143,288.40",782562113
Department of Health,BRIDGEWATER COMMUNITY HEALTHCARE,28/11/2013,Rent,Orford Park LIFT - WARR,COMMUNITY HEALTH PARTNERSHIPS,17069318,"47,762.40",782562113
Department of Health,BRIDGEWATER COMMUNITY HEALTHCARE,28/11/2013,Rent,Orford Park LIFT - WARR,COMMUNITY HEALTH PARTNERSHIPS,17069321,"47,763.60",782562113
Department of Health,BRIDGEWATER COMMUNITY HEALTHCARE,26/11/2013,Rent,Spencer House - WARR,AMAS LTD,17056151,"38,690.40",244155576
Department of Health,BRIDGEWATER COMMUNITY HEALTHCARE,26/11/2013,Rent,Spencer House - WARR,AMAS LTD,17056152,"38,690.40",244155576
Department of Health,BRIDGEWATER COMMUNITY HEALTHCARE,26/11/2013,Rent,Spencer House - WARR,AMAS LTD,17056155,"28,674.73",244155576
Department of Health,BRIDGEWATER COMMUNITY HEALTHCARE,26/11/2013,Rent,Spencer House - WARR,AMAS LTD,17056156,"33,496.34",244155576
Department of Health,BRIDGEWATER COMMUNITY HEALTHCARE,26/11/2013,Rent,Spencer House - WARR,AMAS LTD,17056157,"-40,371.52",244155576
Department of Health,BRIDGEWATER COMMUNITY HEALTHCARE,28/11/2013,Rent,Town centre LIFT - WARR,COMMUNITY HEALTH PARTNERSHIPS,17069316,"135,826.80",782562113
Department of Health,BRIDGEWATER COMMUNITY HEALTHCARE,28/11/2013,Rent,Town centre LIFT - WARR,COMMUNITY HEALTH PARTNERSHIPS,17069319,"37,730.00",782562113
Department of Health,BRIDGEWATER COMMUNITY HEALTHCARE,28/11/2013,Rent,Town centre LIFT - WARR,COMMUNITY HEALTH PARTNERSHIPS,17069322,"45,276.00",782562113
Department of Health,BRIDGEWATER COMMUNITY HEALTHCARE,05/11/2013,Services Received - NHSTs,Informatics - HSH,ST HELENS AND KNOWSLEY HOSPITALS NHS TRUST,16988023,"144,750.00",654943996
Department of Health,BRIDGEWATER COMMUNITY HEALTHCARE,01/11/2013,Services Received - NHSTs,Informatics - HSH,ST HELENS AND KNOWSLEY HOSPITALS NHS TRUST,16996435,"166,666.67",654943996
Department of Health,BRIDGEWATER COMMUNITY HEALTHCARE,19/11/2013,SrvcsRecd-FoundationTrust,Estate Services and Domestics (PCT recharge/LIFT) - HSH,WARRINGTON & HALTON HOSPITALS NHS FOUNDATION TRUST,17041904,"30,673.50",NULL
Department of Health,BRIDGEWATER COMMUNITY HEALTHCARE,01/11/2013,Staff Benefits Expenses,Org Development - ALW,WRIGHTINGTON WIGAN & LEIGH NHS FOUNDATION TRUST,16988016,"50,018.25",654951509
